[Event "Live Chess"]
[Site "Chess.com"]
[Date "2023.05.20"]
[Round "-"]
[White "EdenHazard8"]
[Black "LaupMiths"]
[Result "1-0"]
[WhiteElo "2118"]
[BlackElo "1821"]
[TimeControl "300"]
[EndTime "10:26:09 PDT"]
[Termination "EdenHazard8 won by resignation"]

1. e4 {[%clk 0:04:58.8]} 1... c5 {[%clk 0:04:57.3]} 2. Nc3 {[%clk 0:04:57.2]}
2... Nc6 {[%clk 0:04:54.3]} 3. f4 {[%clk 0:04:56.6]} 3... e6 {[%clk 0:04:52]} 4.
Nf3 {[%clk 0:04:55.5]} 4... g6 {[%clk 0:04:50.9]} 5. Bb5 {[%clk 0:04:54.7]} 5...
Bg7 {[%clk 0:04:48.7]} 6. Bxc6 {[%clk 0:04:53.6]} 6... bxc6 {[%clk 0:04:46.9]}
7. O-O {[%clk 0:04:53.2]} 7... d5 {[%clk 0:04:45.8]} 8. d3 {[%clk 0:04:52.2]}
8... Ne7 {[%clk 0:04:43.9]} 9. Qe1 {[%clk 0:04:51.3]} 9... O-O {[%clk
0:04:42.5]} 10. Qh4 {[%clk 0:04:50.1]} 10... f6 {[%clk 0:04:41.1]} 11. f5 {[%clk
0:04:30.9]} 11... exf5 {[%clk 0:04:36.1]} 12. Bh6 {[%clk 0:04:28.3]} 12... fxe4
{[%clk 0:04:30.2]} 13. dxe4 {[%clk 0:04:23.4]} 13... dxe4 {[%clk 0:04:28.1]} 14.
Bxg7 {[%clk 0:04:14.7]} 14... Kxg7 {[%clk 0:04:14.9]} 15. Nxe4 {[%clk
0:04:12.1]} 15... Nf5 {[%clk 0:04:13.7]} 16. Qf4 {[%clk 0:04:05.9]} 16... Qb6
{[%clk 0:03:53.1]} 17. Rae1 {[%clk 0:03:51.7]} 17... Ba6 {[%clk 0:03:43.1]} 18.
Rf2 {[%clk 0:03:43]} 18... Rad8 {[%clk 0:03:39]} 19. Ng3 {[%clk 0:03:37.9]}
19... c4 {[%clk 0:03:20.6]} 20. Nxf5+ {[%clk 0:03:34.3]} 20... gxf5 {[%clk
0:03:19.4]} 21. Re7+ {[%clk 0:03:27.9]} 21... Rf7 {[%clk 0:03:18]} 22. Rxf7+
{[%clk 0:03:26.9]} 22... Kxf7 {[%clk 0:03:16.7]} 23. h3 {[%clk 0:02:45.8]} 23...
Rd1+ {[%clk 0:03:09.2]} 24. Kh2 {[%clk 0:02:44]} 24... Qxf2 {[%clk 0:03:07.6]}
25. Ne5+ {[%clk 0:02:42.6]} 25... fxe5 {[%clk 0:03:01.6]} 26. Qxf2 {[%clk
0:02:42.5]} 26... f4 {[%clk 0:02:53.3]} 27. Qf3 {[%clk 0:02:40.5]} 27... Rd6
{[%clk 0:02:49]} 28. Qa3 {[%clk 0:02:38.3]} 28... Kf6 {[%clk 0:02:40.4]} 29.
Qxd6+ {[%clk 0:02:36.6]} 1-0

[Event "Live Chess"]
[Site "Chess.com"]
[Date "2023.05.20"]
[Round "-"]
[White "ossie57"]
[Black "YrrriKharkiv"]
[Result "1-0"]
[WhiteElo "1872"]
[BlackElo "2053"]
[TimeControl "300"]
[EndTime "10:26:13 PDT"]
[Termination "ossie57 won by resignation"]

1. d4 {[%clk 0:04:58]} 1... Nf6 {[%clk 0:04:58.6]} 2. Nc3 {[%clk 0:04:57.1]}
2... g6 {[%clk 0:04:56.7]} 3. Bf4 {[%clk 0:04:55.3]} 3... d6 {[%clk 0:04:55.8]}
4. e3 {[%clk 0:04:50.9]} 4... Bg7 {[%clk 0:04:55.1]} 5. Be2 {[%clk 0:04:48.5]}
5... Nbd7 {[%clk 0:04:54.1]} 6. h4 {[%clk 0:04:48]} 6... e5 {[%clk 0:04:51.3]}
7. dxe5 {[%clk 0:04:43.2]} 7... dxe5 {[%clk 0:04:50.6]} 8. Bg5 {[%clk
0:04:35.7]} 8... c6 {[%clk 0:04:38.7]} 9. h5 {[%clk 0:04:31.4]} 9... h6 {[%clk
0:04:36.5]} 10. Bxf6 {[%clk 0:04:21.2]} 10... Qxf6 {[%clk 0:04:36]} 11. hxg6
{[%clk 0:04:20.4]} 11... Qxg6 {[%clk 0:04:30.5]} 12. Nf3 {[%clk 0:04:16.7]}
12... Nb6 {[%clk 0:04:24.1]} 13. Qd3 {[%clk 0:04:03]} 13... Qxd3 {[%clk
0:04:18]} 14. cxd3 {[%clk 0:04:00.9]} 14... Be6 {[%clk 0:04:16.9]} 15. Ne4
{[%clk 0:03:51]} 15... Ke7 {[%clk 0:04:10.7]} 16. Nc5 {[%clk 0:03:27.8]} 16...
Rab8 {[%clk 0:03:57.5]} 17. Nxe6 {[%clk 0:03:25.8]} 17... Kxe6 {[%clk
0:03:56.6]} 18. O-O-O {[%clk 0:03:19.7]} 18... Rbd8 {[%clk 0:03:51]} 19. d4
{[%clk 0:03:17.2]} 19... exd4 {[%clk 0:03:44.9]} 20. Nxd4+ {[%clk 0:03:11.9]}
20... Bxd4 {[%clk 0:03:44.3]} 21. exd4 {[%clk 0:03:06.9]} 21... Nd5 {[%clk
0:03:38]} 22. Bc4 {[%clk 0:03:01.8]} 22... Kf6 {[%clk 0:03:34.5]} 23. Bxd5
{[%clk 0:02:47.4]} 23... Rxd5 {[%clk 0:03:32.4]} 24. Rd3 {[%clk 0:02:46.8]}
24... h5 {[%clk 0:03:28.8]} 25. Rf3+ {[%clk 0:02:44.2]} 25... Kg6 {[%clk
0:03:27.5]} 26. Rf4 {[%clk 0:02:32.4]} 26... Rhd8 {[%clk 0:03:20]} 27. Rfh4
{[%clk 0:02:18.3]} 27... Rg5 {[%clk 0:03:01.2]} 28. g3 {[%clk 0:02:13.8]} 28...
Rdd5 {[%clk 0:02:57.8]} 29. Kc2 {[%clk 0:01:59.7]} 29... Rg4 {[%clk 0:02:45.9]}
30. Rxg4+ {[%clk 0:01:48.6]} 30... hxg4 {[%clk 0:02:44.5]} 31. Kc3 {[%clk
0:01:46.8]} 31... c5 {[%clk 0:02:34.8]} 32. Rd1 {[%clk 0:01:35]} 32... f5 {[%clk
0:02:03.8]} 33. Kc4 {[%clk 0:01:27.7]} 33... Rxd4+ {[%clk 0:02:02]} 34. Rxd4
{[%clk 0:01:26.6]} 34... cxd4 {[%clk 0:02:01.7]} 35. Kxd4 {[%clk 0:01:26.1]}
35... Kf6 {[%clk 0:02:00.7]} 36. Kd5 {[%clk 0:01:20.1]} 36... f4 {[%clk
0:01:59.8]} 37. gxf4 {[%clk 0:01:18.6]} 37... Kf5 {[%clk 0:01:58.6]} 38. Kd6
{[%clk 0:00:38]} 38... Kxf4 {[%clk 0:01:55.9]} 39. Ke6 {[%clk 0:00:37.4]} 39...
Kf3 {[%clk 0:01:53.4]} 40. Kf5 {[%clk 0:00:36.9]} 40... Kxf2 {[%clk 0:01:52.6]}
41. Kxg4 {[%clk 0:00:36.3]} 41... Ke3 {[%clk 0:01:52.2]} 42. Kf5 {[%clk
0:00:33.5]} 42... Kd3 {[%clk 0:01:50.1]} 43. Ke5 {[%clk 0:00:33]} 43... Kc2
{[%clk 0:01:49.4]} 44. Kd5 {[%clk 0:00:32.5]} 44... Kxb2 {[%clk 0:01:48.5]} 45.
a4 {[%clk 0:00:31]} 45... Kb3 {[%clk 0:01:47.7]} 46. a5 {[%clk 0:00:30.4]} 46...
Kb4 {[%clk 0:01:46.8]} 47. a6 {[%clk 0:00:30]} 47... b6 {[%clk 0:01:46]} 48. Kc6
{[%clk 0:00:29.1]} 48... Ka5 {[%clk 0:01:41.2]} 49. Kb7 {[%clk 0:00:28.4]} 49...
b5 {[%clk 0:01:40.6]} 50. Kxa7 {[%clk 0:00:27.7]} 50... b4 {[%clk 0:01:40.3]}
51. Kb7 {[%clk 0:00:26.9]} 51... b3 {[%clk 0:01:40]} 52. a7 {[%clk 0:00:26.6]}
52... b2 {[%clk 0:01:27.2]} 53. a8=Q+ {[%clk 0:00:25.9]} 53... Kb4 {[%clk
0:01:26.9]} 54. Qa2 {[%clk 0:00:24.6]} 54... Kc3 {[%clk 0:01:25.9]} 55. Qb1
{[%clk 0:00:24.2]} 1-0

[Event "Live Chess"]
[Site "Chess.com"]
[Date "2023.05.20"]
[Round "-"]
[White "McSlash1"]
[Black "1600x"]
[Result "0-1"]
[WhiteElo "2056"]
[BlackElo "1480"]
[TimeControl "300"]
[EndTime "10:26:14 PDT"]
[Termination "1600x won by resignation"]

1. e4 {[%clk 0:04:59]} 1... e5 {[%clk 0:04:57.3]} 2. Nf3 {[%clk 0:04:57.9]} 2...
Nf6 {[%clk 0:04:57.2]} 3. Nxe5 {[%clk 0:04:56.9]} 3... Nxe4 {[%clk 0:04:56.5]}
4. Qe2 {[%clk 0:04:55.6]} 4... Qe7 {[%clk 0:04:54.3]} 5. Qxe4 {[%clk 0:04:54.7]}
5... f5 {[%clk 0:04:53]} 6. Qxf5 {[%clk 0:04:48]} 6... Nc6 {[%clk 0:04:51.2]} 7.
f4 {[%clk 0:04:40.4]} 7... d6 {[%clk 0:04:47.5]} 8. Qf7+ {[%clk 0:04:15.9]} 8...
Qxf7 {[%clk 0:04:46]} 9. Nxf7 {[%clk 0:04:15.8]} 9... Kxf7 {[%clk 0:04:45.2]}
10. Bc4+ {[%clk 0:04:10.5]} 10... Be6 {[%clk 0:04:43.1]} 11. Bxe6+ {[%clk
0:04:09.5]} 11... Kxe6 {[%clk 0:04:42.1]} 12. O-O {[%clk 0:04:09.1]} 12... d5
{[%clk 0:04:37.5]} 13. c3 {[%clk 0:04:07]} 13... Bd6 {[%clk 0:04:35.3]} 14. d4
{[%clk 0:04:06.1]} 14... Rae8 {[%clk 0:04:32.7]} 15. f5+ {[%clk 0:04:04.9]}
15... Kd7 {[%clk 0:04:31]} 16. Bg5 {[%clk 0:04:03.2]} 16... Rhf8 {[%clk
0:04:29.1]} 17. Nd2 {[%clk 0:04:00]} 17... h6 {[%clk 0:04:25]} 18. Bh4 {[%clk
0:03:56.6]} 18... Re2 {[%clk 0:04:18.9]} 19. Rad1 {[%clk 0:03:54.3]} 19... b5
{[%clk 0:04:15.7]} 20. Rfe1 {[%clk 0:03:51.6]} 20... Rxe1+ {[%clk 0:04:13.1]}
21. Rxe1 {[%clk 0:03:51.5]} 21... Rxf5 {[%clk 0:04:10.9]} 22. Nf3 {[%clk
0:03:45]} 22... g5 {[%clk 0:04:09.3]} 23. Bf2 {[%clk 0:03:43.3]} 23... g4 {[%clk
0:04:07.3]} 24. Nh4 {[%clk 0:03:35.9]} 24... Bxh2+ {[%clk 0:04:03.6]} 25. Kxh2
{[%clk 0:03:23.8]} 25... Rxf2 {[%clk 0:03:59.3]} 26. Nf5 {[%clk 0:03:17.1]}
26... Rxf5 {[%clk 0:03:53.4]} 0-1

[Event "Live Chess"]
[Site "Chess.com"]
[Date "2023.05.20"]
[Round "-"]
[White "AttackingSnowLeopard"]
[Black "kenn48"]
[Result "1-0"]
[WhiteElo "2064"]
[BlackElo "1321"]
[TimeControl "300"]
[EndTime "10:26:16 PDT"]
[Termination "AttackingSnowLeopard won by checkmate"]

1. d4 {[%clk 0:04:58.3]} 1... Nf6 {[%clk 0:04:56.6]} 2. c4 {[%clk 0:04:57.8]}
2... e6 {[%clk 0:04:55.5]} 3. Nf3 {[%clk 0:04:57.4]} 3... Nc6 {[%clk 0:04:50.9]}
4. Nc3 {[%clk 0:04:54.1]} 4... d5 {[%clk 0:04:47.3]} 5. Bg5 {[%clk 0:04:51.2]}
5... Be7 {[%clk 0:04:44.8]} 6. e3 {[%clk 0:04:50.2]} 6... Ne4 {[%clk 0:04:39.6]}
7. Bxe7 {[%clk 0:04:48.1]} 7... Qxe7 {[%clk 0:04:37.8]} 8. Bd3 {[%clk
0:04:46.2]} 8... Nxc3 {[%clk 0:04:30.1]} 9. bxc3 {[%clk 0:04:45]} 9... O-O
{[%clk 0:04:28.2]} 10. O-O {[%clk 0:04:42.6]} 10... e5 {[%clk 0:04:23.5]} 11.
cxd5 {[%clk 0:04:40.2]} 11... e4 {[%clk 0:04:12.2]} 12. dxc6 {[%clk 0:04:36.1]}
12... exd3 {[%clk 0:04:07.3]} 13. Qxd3 {[%clk 0:04:34.8]} 13... bxc6 {[%clk
0:04:04.5]} 14. Ne5 {[%clk 0:04:32]} 14... Bb7 {[%clk 0:03:58.8]} 15. Rab1
{[%clk 0:04:30.1]} 15... Rab8 {[%clk 0:03:56.5]} 16. Qc4 {[%clk 0:04:28.5]}
16... Qg5 {[%clk 0:03:41.1]} 17. Nd7 {[%clk 0:04:18.9]} 17... c5 {[%clk
0:03:33.1]} 18. Rxb7 {[%clk 0:04:15.9]} 18... Rxb7 {[%clk 0:03:29.4]} 19. Nxf8
{[%clk 0:04:14.3]} 19... Kxf8 {[%clk 0:03:26.9]} 20. dxc5 {[%clk 0:04:13.9]}
20... Rb2 {[%clk 0:03:18.7]} 21. h3 {[%clk 0:04:08.1]} 21... g6 {[%clk
0:03:11.5]} 22. Rd1 {[%clk 0:03:47.1]} 22... Qf5 {[%clk 0:03:05.8]} 23. f4
{[%clk 0:03:23.4]} 23... Qc2 {[%clk 0:02:55.4]} 24. Rd8+ {[%clk 0:03:13.9]}
24... Kg7 {[%clk 0:02:51.6]} 25. Qd5 {[%clk 0:03:13]} 25... Qc1+ {[%clk
0:02:34.9]} 26. Kh2 {[%clk 0:03:09.8]} 26... Qxe3 {[%clk 0:02:32.8]} 27. Qd4+
{[%clk 0:02:56.6]} 27... Qxd4 {[%clk 0:02:27.6]} 28. cxd4 {[%clk 0:02:56.5]}
28... Rxa2 {[%clk 0:02:25.6]} 29. Rd7 {[%clk 0:02:55.2]} 29... c6 {[%clk
0:02:20.1]} 30. Rd6 {[%clk 0:02:47.8]} 30... Rd2 {[%clk 0:02:15.3]} 31. Kg3
{[%clk 0:02:46.4]} 31... a5 {[%clk 0:02:13]} 32. Kf3 {[%clk 0:02:41.4]} 32... a4
{[%clk 0:02:10.8]} 33. Ke3 {[%clk 0:02:41]} 33... Rxg2 {[%clk 0:02:08.4]} 34.
Rxc6 {[%clk 0:02:39.9]} 34... Rg3+ {[%clk 0:02:05.2]} 35. Ke4 {[%clk 0:02:36]}
35... Rxh3 {[%clk 0:02:03.7]} 36. Ra6 {[%clk 0:02:34.4]} 36... a3 {[%clk
0:02:02.2]} 37. c6 {[%clk 0:02:33.5]} 37... f5+ {[%clk 0:01:58.6]} 38. Ke5
{[%clk 0:02:31.8]} 38... Re3+ {[%clk 0:01:55.6]} 39. Kd6 {[%clk 0:02:30.7]}
39... Re4 {[%clk 0:01:52.2]} 40. d5 {[%clk 0:02:29]} 40... Re3 {[%clk
0:01:44.8]} 41. c7 {[%clk 0:02:27.4]} 41... Rc3 {[%clk 0:01:43]} 42. Kd7 {[%clk
0:02:27]} 42... g5 {[%clk 0:01:36.1]} 43. Rxa3 {[%clk 0:02:03.4]} 43... Rxa3
{[%clk 0:01:28]} 44. c8=Q {[%clk 0:02:02.2]} 44... Ra7+ {[%clk 0:01:25.7]} 45.
Ke6 {[%clk 0:01:59.2]} 45... Rf7 {[%clk 0:01:15.7]} 46. d6 {[%clk 0:01:57]}
46... g4 {[%clk 0:01:12.6]} 47. d7 {[%clk 0:01:55.4]} 47... Rf6+ {[%clk
0:01:08.2]} 48. Ke5 {[%clk 0:01:53.4]} 48... Rf7 {[%clk 0:01:03.8]} 49. d8=Q
{[%clk 0:01:51.3]} 49... g3 {[%clk 0:00:59.5]} 50. Qg5# {[%clk 0:01:49.5]} 1-0

[Event "Live Chess"]
[Site "Chess.com"]
[Date "2023.05.20"]
[Round "-"]
[White "Pablo_dmp"]
[Black "KeithArkell"]
[Result "0-1"]
[WhiteElo "1871"]
[BlackElo "2611"]
[TimeControl "300"]
[EndTime "10:26:20 PDT"]
[Termination "KeithArkell won by resignation"]

1. e4 {[%clk 0:04:59.5]} 1... c6 {[%clk 0:04:58.8]} 2. d4 {[%clk 0:04:58.3]}
2... d5 {[%clk 0:04:58.2]} 3. e5 {[%clk 0:04:58]} 3... c5 {[%clk 0:04:57.3]} 4.
dxc5 {[%clk 0:04:57.7]} 4... Nc6 {[%clk 0:04:55]} 5. f4 {[%clk 0:04:56.8]} 5...
Bf5 {[%clk 0:04:53.5]} 6. Nf3 {[%clk 0:04:43.5]} 6... e6 {[%clk 0:04:52]} 7. Be3
{[%clk 0:04:42.1]} 7... Nge7 {[%clk 0:04:50.1]} 8. c3 {[%clk 0:04:40.1]} 8...
Bg4 {[%clk 0:04:48.1]} 9. Be2 {[%clk 0:04:34.6]} 9... Nf5 {[%clk 0:04:46.5]} 10.
Bf2 {[%clk 0:04:33.1]} 10... a5 {[%clk 0:04:44.8]} 11. Na3 {[%clk 0:04:22.1]}
11... Be7 {[%clk 0:04:30.7]} 12. Nb5 {[%clk 0:03:53.1]} 12... O-O {[%clk
0:04:27.5]} 13. a4 {[%clk 0:03:43.2]} 13... f6 {[%clk 0:04:22.9]} 14. Nd6 {[%clk
0:03:34.8]} 14... Bxf3 {[%clk 0:04:19.1]} 15. Bxf3 {[%clk 0:03:26]} 15... fxe5
{[%clk 0:04:18.4]} 16. Nxb7 {[%clk 0:03:17.9]} 16... Qc7 {[%clk 0:04:14.5]} 17.
Nd6 {[%clk 0:03:11.5]} 17... Nxd6 {[%clk 0:04:09.4]} 18. cxd6 {[%clk 0:03:10.3]}
18... Bxd6 {[%clk 0:04:08.7]} 19. fxe5 {[%clk 0:03:09.4]} 19... Nxe5 {[%clk
0:04:07.6]} 20. O-O {[%clk 0:02:58.1]} 20... Nxf3+ {[%clk 0:04:05.3]} 21. gxf3
{[%clk 0:02:58]} 21... Bxh2+ {[%clk 0:04:04.1]} 22. Kg2 {[%clk 0:02:52.9]} 22...
Rf5 {[%clk 0:04:01.6]} 23. Rh1 {[%clk 0:02:50.2]} 23... Bf4 {[%clk 0:03:56.5]}
24. Qe2 {[%clk 0:02:38.8]} 24... Qf7 {[%clk 0:03:53.4]} 25. Bg3 {[%clk
0:02:27.4]} 25... Rg5 {[%clk 0:03:48.9]} 26. Rh3 {[%clk 0:02:25.8]} 26... Qg6
{[%clk 0:03:45.7]} 27. Qf2 {[%clk 0:02:23.7]} 27... Rb8 {[%clk 0:03:39.8]} 28.
Ra2 {[%clk 0:02:15.1]} 28... Qb1 {[%clk 0:03:34.5]} 29. b4 {[%clk 0:02:11.3]}
29... axb4 {[%clk 0:03:24.2]} 30. cxb4 {[%clk 0:02:09.5]} 30... Rxb4 {[%clk
0:03:10.9]} 31. a5 {[%clk 0:02:07.9]} 31... Bxg3 {[%clk 0:03:02.6]} 32. Rxg3
{[%clk 0:02:04.3]} 32... Rxg3+ {[%clk 0:03:01.8]} 33. Kxg3 {[%clk 0:02:04.2]}
33... Qg6+ {[%clk 0:03:00.7]} 34. Kh3 {[%clk 0:01:56.1]} 34... Rb1 {[%clk
0:02:45.9]} 35. Qg2 {[%clk 0:01:35.2]} 35... Qh5+ {[%clk 0:02:42.9]} 36. Kg3
{[%clk 0:01:33.6]} 36... Rb4 {[%clk 0:02:39.3]} 37. Kf2 {[%clk 0:01:27.3]} 37...
Qh4+ {[%clk 0:02:32.8]} 38. Ke2 {[%clk 0:01:19.6]} 38... Qc4+ {[%clk 0:02:31]}
39. Ke3 {[%clk 0:01:15.1]} 39... Rb3+ {[%clk 0:02:12]} 40. Kf2 {[%clk
0:01:12.5]} 40... Rb8 {[%clk 0:01:59]} 41. a6 {[%clk 0:01:07.3]} 41... Qxa2+
{[%clk 0:01:57]} 0-1

[Event "Live Chess"]
[Site "Chess.com"]
[Date "2023.05.20"]
[Round "-"]
[White "viktorskliarov"]
[Black "MaximKhimchenko"]
[Result "1-0"]
[WhiteElo "2648"]
[BlackElo "1350"]
[TimeControl "300"]
[EndTime "10:26:21 PDT"]
[Termination "viktorskliarov won by resignation"]

1. e4 {[%clk 0:04:57.8]} 1... c5 {[%clk 0:04:58.4]} 2. Nf3 {[%clk 0:04:56.5]}
2... Nc6 {[%clk 0:04:53.8]} 3. Bb5 {[%clk 0:04:54.2]} 3... d6 {[%clk 0:04:52.8]}
4. d4 {[%clk 0:04:49.4]} 4... cxd4 {[%clk 0:04:52.7]} 5. Qxd4 {[%clk 0:04:48.8]}
5... Bd7 {[%clk 0:04:51.3]} 6. Bxc6 {[%clk 0:04:48.1]} 6... bxc6 {[%clk
0:04:49.1]} 7. c4 {[%clk 0:04:45]} 7... e5 {[%clk 0:04:46.7]} 8. Qd3 {[%clk
0:04:43.6]} 8... Nf6 {[%clk 0:04:45.4]} 9. O-O {[%clk 0:04:41.3]} 9... Be7
{[%clk 0:04:40.3]} 10. Nc3 {[%clk 0:04:39.4]} 10... O-O {[%clk 0:04:39.8]} 11.
c5 {[%clk 0:04:38.3]} 11... dxc5 {[%clk 0:04:34.5]} 12. Nxe5 {[%clk 0:04:36.5]}
12... Be8 {[%clk 0:04:28.8]} 13. Qxd8 {[%clk 0:04:29.7]} 13... Rxd8 {[%clk
0:04:27.7]} 14. Be3 {[%clk 0:04:29.2]} 14... Bd6 {[%clk 0:04:23.8]} 15. Nc4
{[%clk 0:04:27.1]} 15... Be7 {[%clk 0:04:21]} 16. f3 {[%clk 0:04:24.7]} 16...
Bd7 {[%clk 0:04:18.6]} 17. Rac1 {[%clk 0:04:19.3]} 17... Be6 {[%clk 0:04:13.4]}
18. Na5 {[%clk 0:04:10]} 18... Rc8 {[%clk 0:04:03.1]} 19. b3 {[%clk 0:04:01.4]}
19... Rfd8 {[%clk 0:03:56.8]} 20. Na4 {[%clk 0:03:58.4]} 20... Nd7 {[%clk
0:03:51.9]} 21. Rf2 {[%clk 0:03:48.3]} 21... Ne5 {[%clk 0:03:45.7]} 22. Rfc2
{[%clk 0:03:33.3]} 22... Nd3 {[%clk 0:03:28.3]} 23. Rf1 {[%clk 0:03:25.1]} 23...
Nb4 {[%clk 0:03:23.2]} 24. Re2 {[%clk 0:03:18.1]} 24... Rd3 {[%clk 0:03:09.5]}
25. Bxc5 {[%clk 0:03:13.8]} 25... Bxc5+ {[%clk 0:03:09.4]} 26. Nxc5 {[%clk
0:03:13.2]} 26... Rc3 {[%clk 0:03:06.2]} 27. Na4 {[%clk 0:03:06.2]} 27... Rc2
{[%clk 0:02:59.8]} 28. Rxc2 {[%clk 0:03:04.2]} 28... Nxc2 {[%clk 0:02:59.7]} 29.
Rc1 {[%clk 0:03:02.1]} 29... Nb4 {[%clk 0:02:49.4]} 30. a3 {[%clk 0:02:56]}
30... Nd3 {[%clk 0:02:38.3]} 31. Rc3 {[%clk 0:02:49.1]} 31... Ne5 {[%clk
0:02:34.9]} 32. f4 {[%clk 0:02:44.8]} 32... Ng4 {[%clk 0:02:33.4]} 33. h3 {[%clk
0:02:35.8]} 33... Nf6 {[%clk 0:02:29.6]} 34. Nc5 {[%clk 0:02:35]} 34... Nd7
{[%clk 0:02:22.9]} 35. Nxe6 {[%clk 0:02:30]} 35... fxe6 {[%clk 0:02:18.2]} 36.
Rxc6 {[%clk 0:02:29.5]} 36... Rxc6 {[%clk 0:02:17.4]} 37. Nxc6 {[%clk
0:02:29.4]} 37... a6 {[%clk 0:02:15.8]} 38. Nb4 {[%clk 0:02:26.1]} 38... Nc5
{[%clk 0:02:14.1]} 39. e5 {[%clk 0:02:16.9]} 39... Nxb3 {[%clk 0:02:07]} 40.
Nxa6 {[%clk 0:02:15.9]} 40... Na5 {[%clk 0:02:03.6]} 41. Nc5 {[%clk 0:02:12.9]}
41... Kf7 {[%clk 0:02:02.3]} 42. Kf2 {[%clk 0:02:11.8]} 42... Ke7 {[%clk
0:02:00.2]} 43. Ke2 {[%clk 0:02:08.7]} 43... g6 {[%clk 0:01:49.4]} 44. Kd3
{[%clk 0:02:07.2]} 44... Nc6 {[%clk 0:01:42.9]} 45. Kc4 {[%clk 0:02:02.8]} 45...
Na5+ {[%clk 0:01:39.2]} 46. Kb5 {[%clk 0:02:00.9]} 1-0

[Event "Live Chess"]
[Site "Chess.com"]
[Date "2023.05.20"]
[Round "-"]
[White "JoshMcK"]
[Black "MrDodgy"]
[Result "0-1"]
[WhiteElo "1528"]
[BlackElo "2322"]
[TimeControl "300"]
[EndTime "10:26:21 PDT"]
[Termination "MrDodgy won by resignation"]

1. e4 {[%clk 0:04:58.8]} 1... e6 {[%clk 0:04:53]} 2. d4 {[%clk 0:04:57.2]} 2...
d5 {[%clk 0:04:52.5]} 3. Nc3 {[%clk 0:04:54.6]} 3... Nf6 {[%clk 0:04:48.7]} 4.
e5 {[%clk 0:04:53.1]} 4... Nfd7 {[%clk 0:04:47.9]} 5. f4 {[%clk 0:04:52.1]} 5...
c5 {[%clk 0:04:47.4]} 6. Nf3 {[%clk 0:04:51]} 6... Nc6 {[%clk 0:04:46.9]} 7. Be3
{[%clk 0:04:50.1]} 7... a6 {[%clk 0:04:37.6]} 8. a3 {[%clk 0:04:36.3]} 8... Be7
{[%clk 0:04:35.5]} 9. Bd3 {[%clk 0:04:31.9]} 9... b5 {[%clk 0:04:27.6]} 10. O-O
{[%clk 0:04:24.3]} 10... Qb6 {[%clk 0:04:23.7]} 11. dxc5 {[%clk 0:04:01.2]}
11... Bxc5 {[%clk 0:04:20]} 12. Bxc5 {[%clk 0:03:59.8]} 12... Nxc5 {[%clk
0:04:19.5]} 13. Ne2 {[%clk 0:03:52.2]} 13... Nxd3+ {[%clk 0:04:16.4]} 14. Kh1
{[%clk 0:03:47.7]} 14... Nf2+ {[%clk 0:04:15.6]} 15. Rxf2 {[%clk 0:03:46.3]}
15... Qxf2 {[%clk 0:04:15.5]} 0-1

[Event "Live Chess"]
[Site "Chess.com"]
[Date "2023.05.20"]
[Round "-"]
[White "Olisingapore"]
[Black "CheckString"]
[Result "1-0"]
[WhiteElo "1939"]
[BlackElo "1275"]
[TimeControl "300"]
[EndTime "10:26:35 PDT"]
[Termination "Olisingapore won by resignation"]

1. d4 {[%clk 0:04:57.7]} 1... g6 {[%clk 0:04:55.6]} 2. c4 {[%clk 0:04:55.7]}
2... Bg7 {[%clk 0:04:54.6]} 3. g3 {[%clk 0:04:51.6]} 3... Nf6 {[%clk 0:04:51.8]}
4. Bg2 {[%clk 0:04:51.2]} 4... O-O {[%clk 0:04:50.2]} 5. Nc3 {[%clk 0:04:50.8]}
5... d6 {[%clk 0:04:45.3]} 6. Nf3 {[%clk 0:04:50.7]} 6... a6 {[%clk 0:04:41]} 7.
O-O {[%clk 0:04:50.3]} 7... Bg4 {[%clk 0:04:38.7]} 8. e4 {[%clk 0:04:47.3]} 8...
Nbd7 {[%clk 0:04:20.1]} 9. h3 {[%clk 0:04:42.7]} 9... Bxf3 {[%clk 0:04:14.4]}
10. Bxf3 {[%clk 0:04:42.6]} 10... e5 {[%clk 0:04:13.9]} 11. d5 {[%clk
0:04:38.9]} 11... Nc5 {[%clk 0:04:10]} 12. Bg5 {[%clk 0:04:29]} 12... h6 {[%clk
0:04:01.4]} 13. Be3 {[%clk 0:04:27.7]} 13... Qd7 {[%clk 0:03:45.5]} 14. Kg2
{[%clk 0:04:22.4]} 14... c6 {[%clk 0:03:33.3]} 15. b4 {[%clk 0:04:15.6]} 15...
cxd5 {[%clk 0:03:25.5]} 16. cxd5 {[%clk 0:04:13.5]} 16... Ne6 {[%clk 0:03:07.3]}
17. dxe6 {[%clk 0:04:11.4]} 17... Qxe6 {[%clk 0:03:07.2]} 18. Nd5 {[%clk
0:04:07.5]} 18... Nxd5 {[%clk 0:03:00.6]} 19. Qxd5 {[%clk 0:04:01.2]} 19... Qxd5
{[%clk 0:02:57]} 20. exd5 {[%clk 0:04:01.1]} 20... Rac8 {[%clk 0:02:56.4]} 21.
Rac1 {[%clk 0:03:59.5]} 21... f5 {[%clk 0:02:52.4]} 22. Rxc8 {[%clk 0:03:37.9]}
22... Rxc8 {[%clk 0:02:52.3]} 23. Rc1 {[%clk 0:03:36.5]} 23... Rxc1 {[%clk
0:02:47.8]} 24. Bxc1 {[%clk 0:03:36.4]} 24... e4 {[%clk 0:02:47.4]} 25. Be2
{[%clk 0:03:34.6]} 25... Bc3 {[%clk 0:02:42.8]} 26. b5 {[%clk 0:03:31.9]} 26...
a5 {[%clk 0:02:38.2]} 27. a4 {[%clk 0:03:30.3]} 27... b6 {[%clk 0:02:36.1]} 28.
Be3 {[%clk 0:03:28.5]} 28... Bb4 {[%clk 0:02:32.6]} 29. Bxb6 {[%clk 0:03:27]}
29... Kf7 {[%clk 0:02:30.5]} 30. Bd4 {[%clk 0:03:19.6]} 30... Bc5 {[%clk
0:02:27.2]} 31. Bxc5 {[%clk 0:03:17.5]} 31... dxc5 {[%clk 0:02:27.1]} 32. b6
{[%clk 0:03:16]} 1-0

[Event "Live Chess"]
[Site "Chess.com"]
[Date "2023.05.20"]
[Round "-"]
[White "PaulyD81"]
[Black "CeladonFish"]
[Result "1-0"]
[WhiteElo "1105"]
[BlackElo "958"]
[TimeControl "300"]
[EndTime "10:26:42 PDT"]
[Termination "PaulyD81 won by checkmate"]

1. d4 {[%clk 0:04:58]} 1... Nf6 {[%clk 0:04:52.3]} 2. c4 {[%clk 0:04:51.3]} 2...
g6 {[%clk 0:04:51.1]} 3. Nc3 {[%clk 0:04:49.6]} 3... Bg7 {[%clk 0:04:49.7]} 4.
e4 {[%clk 0:04:49.1]} 4... O-O {[%clk 0:04:47.8]} 5. Nf3 {[%clk 0:04:48.6]} 5...
d6 {[%clk 0:04:46]} 6. Be2 {[%clk 0:04:47.5]} 6... c6 {[%clk 0:04:45]} 7. O-O
{[%clk 0:04:42.9]} 7... a6 {[%clk 0:04:44.1]} 8. Bg5 {[%clk 0:04:35.7]} 8... b5
{[%clk 0:04:31.8]} 9. b3 {[%clk 0:04:27.6]} 9... b4 {[%clk 0:04:21.8]} 10. Na4
{[%clk 0:04:03.5]} 10... Nxe4 {[%clk 0:04:14.7]} 11. Qd3 {[%clk 0:03:42.5]}
11... d5 {[%clk 0:04:04]} 12. cxd5 {[%clk 0:03:33.3]} 12... cxd5 {[%clk
0:04:02.5]} 13. Nc5 {[%clk 0:03:26.5]} 13... Nxc5 {[%clk 0:03:57.6]} 14. dxc5
{[%clk 0:03:23.5]} 14... Bxa1 {[%clk 0:03:56.3]} 15. Rxa1 {[%clk 0:03:21.6]}
15... Bf5 {[%clk 0:03:52.5]} 16. Qd4 {[%clk 0:03:01.1]} 16... f6 {[%clk
0:03:42]} 17. Bh6 {[%clk 0:02:56.9]} 17... e5 {[%clk 0:03:37.5]} 18. Nxe5 {[%clk
0:02:51.3]} 18... fxe5 {[%clk 0:03:35]} 19. Qxe5 {[%clk 0:02:50.4]} 19... Re8
{[%clk 0:03:33.6]} 20. Qg7# {[%clk 0:02:48.9]} 1-0